fUST/lending_fUST_20250514
["ID","MTS","AMOUNT","RATE_DAILY","PERIOD"]
[360993733,1747186332288,-749.89501192,0.00011389,2]
[360993734,1747186332311,-749.89501192,0.00011389,2]
[360993735,1747186332335,-500.0,0.00011389,2]
[360993736,1747186332359,-500.0,0.00011389,2]
[360993737,1747186332381,-749.89501192,0.00011389,2]
[360993738,1747186332404,-500.0,0.00011389,2]
[360993739,1747186332430,-500.0,0.00011389,2]
[360993740,1747186332452,-749.89501192,0.00011389,2]
[360993741,1747186332475,-500.0,0.00011389,2]
[360993742,1747186332499,-396.55421867,0.00011389,2]
[360993750,1747186713332,-157.83918439,0.00010428,2]
[360993751,1747186716867,-225.0357138,0.00010428,2]
[360993753,1747186719171,-235.50125494,0.00010428,2]
[360993754,1747186720767,-222.73251824,0.00010428,2]
[360993755,1747186722434,-156.69914181,0.00010428,2]
[360993756,1747186723168,-4000.0,0.00010428,2]
[360993757,1747186724680,-2.19218682,0.00010428,2]
[360993758,1747186728101,-172.07482115,0.00010324,2]
[360993759,1747186729662,-246.16366903,0.00010324,2]
[360993760,1747186732646,-255.58225956,0.00010324,2]
[360993761,1747186735215,-160.7475224,0.00010324,2]
[360993762,1747186737260,-189.06289489,0.00010324,2]
[360993763,1747186739184,-210.47024841,0.00010324,2]
[360993764,1747186741033,-300.58775224,0.00010324,2]
[360993765,1747186742564,-175.44859282,0.00010324,2]
[360993766,1747186746378,-421.5458782,0.00010324,2]
[360993767,1747186748785,-164.83253891,0.00010324,2]
[360993769,1747186793368,-2701.0,0.00010324,2]
[360993775,1747186920693,-282.2628579,0.00010221,2]
[360993776,1747186924722,-172.92714123,0.00010221,2]
[360993777,1747186926687,-229.0914388,0.00010221,2]
[360993778,1747186927549,-4315.71856207,0.00010221,2]
[360993787,1747187322469,-5000.0,0.00010393,2]
[360993825,1747187393541,-155.48722296,9.59e-05,2]
[360993826,1747187395579,-565.99779108,9.59e-05,2]
[360993827,1747187399175,-151.52692452,9.59e-05,2]
[360993828,1747187402025,-213.82455512,9.59e-05,2]
[360993835,1747187408061,-190.84214183,9.59e-05,2]
[360993836,1747187410600,-68.66631439,9.59e-05,2]
[360993840,1747187432022,-164.8780326,9.59e-05,2]
[360993841,1747187432032,-2492.28531452,0.00010393,2]
[360993842,1747187432129,-2507.71468548,0.00010393,2]
[360993844,1747187432139,-207.0,0.00010497,2]
[360993845,1747187432148,-500.0,0.00010498,2]
[360993846,1747187432158,-500.0,0.00010498,2]
[360993847,1747187432168,-623.33658489,0.00010498,2]
[360993848,1747187432178,-500.0,0.00010498,2]
[360993849,1747187432188,-500.0,0.00010498,2]
[360993850,1747187432200,-500.0,0.00010498,2]
[360993851,1747187432211,-500.0,0.00010498,2]
[360993852,1747187432220,-617.47758006,0.00010498,2]
[360993853,1747187432231,-500.0,0.00010498,2]
[360993854,1747187432240,-1057.15659201,0.00010498,2]
[360993855,1747187432251,-1057.15659201,0.00010498,2]
[360993856,1747187432265,-500.0,0.00010498,2]
[360993857,1747187432274,-500.0,0.00010498,2]
[360993858,1747187432284,-1057.15659201,0.00010498,2]
[360993859,1747187432294,-500.0,0.00010498,2]
[360993860,1747187432303,-1057.15659201,0.00010498,2]
[360993861,1747187432314,-500.0,0.00010498,2]
[360993862,1747187432324,-500.0,0.00010498,2]
[360993863,1747187432333,-1057.15659201,0.00010498,2]
[360993864,1747187432343,-500.0,0.00010498,2]
[360993865,1747187432353,-1057.15659201,0.00010498,2]
[360993866,1747187432363,-500.0,0.00010498,2]
[360993867,1747187432372,-1057.15659201,0.00010498,2]
[360993868,1747187432382,-500.0,0.00010498,2]
[360993869,1747187432391,-1057.15659201,0.00010498,2]
[360993870,1747187432401,-500.0,0.00010498,2]
[360993871,1747187432410,-1057.15659201,0.00010498,2]
[360993872,1747187432419,-1057.15659201,0.00010498,2]
[360993874,1747187432429,-500.0,0.00010498,2]
[360993876,1747187432438,-1057.15659201,0.00010498,2]
[360993878,1747187432448,-594.79231035,0.00010498,2]
[360993880,1747187432457,-1057.15659201,0.00010498,2]
[360993881,1747187432467,-1057.15659201,0.00010498,2]
[360993882,1747187432478,-1057.15659201,0.00010498,2]
[360993884,1747187432487,-1057.15659201,0.00010498,2]
[360993885,1747187432496,-1057.15659201,0.00010498,2]
[360993886,1747187432506,-1057.15659201,0.00010498,2]
[360993887,1747187432517,-1057.15659201,0.00010498,2]
[360993888,1747187432526,-1057.15659201,0.00010498,2]
[360993889,1747187432536,-1057.15659201,0.00010498,2]
[360993890,1747187432558,-1057.15659201,0.00010498,2]
[360993891,1747187432569,-1057.15659201,0.00010498,2]
[360993892,1747187432580,-1057.15659201,0.00010498,2]
[360993893,1747187432591,-1057.15659201,0.00010498,2]
[360993894,1747187432600,-1057.15659201,0.00010498,2]
[360993895,1747187432611,-1057.15659201,0.00010498,2]
[360993896,1747187432620,-1057.15659201,0.00010498,2]
[360993897,1747187432630,-1057.15659201,0.00010498,2]
[360993898,1747187432641,-1057.15659201,0.00010498,2]
[360993899,1747187432650,-1057.15659201,0.00010498,2]
[360993900,1747187432661,-1057.15659201,0.00010498,2]
[360993901,1747187432671,-1057.15659201,0.00010498,2]
[360993902,1747187432681,-1057.15659201,0.00010498,2]
[360993903,1747187432692,-1057.15659201,0.00010498,2]
[360993904,1747187432701,-1057.15659201,0.00010498,2]
[360993905,1747187432711,-1057.15659201,0.00010498,2]
[360993906,1747187432721,-1057.15659201,0.00010498,2]
[360993907,1747187432730,-1057.15659201,0.00010498,2]
[360993908,1747187432740,-1057.15659201,0.00010498,2]
[360993909,1747187432750,-1057.15659201,0.00010498,2]
[360993910,1747187432760,-1057.15659201,0.00010498,2]
[360993911,1747187432770,-1057.15659201,0.00010498,2]
[360993912,1747187432780,-1057.15659201,0.00010498,2]
[360993913,1747187432790,-1057.15659201,0.00010498,2]
[360993914,1747187432800,-1057.15659201,0.00010498,2]
[360993915,1747187432810,-1057.15659201,0.00010498,2]
[360993916,1747187432820,-1057.15659201,0.00010498,2]
[360993917,1747187432830,-1057.15659201,0.00010498,2]
[360993918,1747187432841,-1057.15659201,0.00010498,2]
[360993919,1747187432853,-1057.15659201,0.00010498,2]
[360993920,1747187432862,-1057.15659201,0.00010498,2]
[360993921,1747187432872,-1057.15659201,0.00010498,2]
[360993922,1747187433142,-1057.15659201,0.00010498,2]
[360993923,1747187433176,-1057.15659201,0.00010498,2]
[360993924,1747187433186,-1057.15659201,0.00010498,2]
[360993925,1747187433196,-1057.15659201,0.00010498,2]
[360993926,1747187433206,-1057.15659201,0.00010498,2]
[360993927,1747187433216,-1057.15659201,0.00010498,2]
[360993928,1747187433227,-1755.08215683,0.00010498,2]
[360993929,1747187433237,-1755.08215683,0.00010498,2]
[360993930,1747187433247,-1755.08215683,0.00010498,2]
[360993931,1747187433261,-1755.08215683,0.00010498,2]
[360993932,1747187433272,-1755.08215683,0.00010498,2]
[360993933,1747187433282,-1755.08215683,0.00010498,2]
[360993934,1747187433293,-1755.08215683,0.00010498,2]
[360993935,1747187433303,-1755.08215683,0.00010498,2]
[360993936,1747187433313,-1755.08215683,0.00010498,2]
[360993937,1747187433324,-1755.08215683,0.00010498,2]
[360993938,1747187433334,-1755.08215683,0.00010498,2]
[360993939,1747187433345,-1755.08215683,0.00010498,2]
[360993940,1747187433355,-1755.08215683,0.00010498,2]
[360993941,1747187433366,-1755.08215683,0.00010498,2]
[360993942,1747187433376,-1755.08215683,0.00010498,2]
[360993943,1747187433386,-1755.08215683,0.00010498,2]
[360993944,1747187433396,-1755.08215683,0.00010498,2]
[360993945,1747187433406,-1755.08215683,0.00010498,2]
[360993946,1747187433416,-1755.08215683,0.00010498,2]
[360993947,1747187433427,-1755.08215683,0.00010498,2]
[360993948,1747187433437,-1755.08215683,0.00010498,2]
[360993949,1747187433447,-1755.08215683,0.00010498,2]
[360993950,1747187433456,-1755.08215683,0.00010498,2]
[360993951,1747187433467,-1755.08215683,0.00010498,2]
[360993952,1747187433478,-1755.08215683,0.00010498,2]
[360993953,1747187433488,-1755.08215683,0.00010498,2]
[360993954,1747187433498,-1755.08215683,0.00010498,2]
[360993955,1747187433510,-1755.08215683,0.00010498,2]
[360993956,1747187433521,-1755.08215679,0.00010498,2]
[360993957,1747187433534,-1755.08215679,0.00010498,2]
[360993958,1747187433547,-1755.08215679,0.00010498,2]
[360993959,1747187433559,-50000.0,0.00010499,2]
[360993960,1747187433570,-34559.0,0.000105,2]
[360993961,1747187433580,-24900.0,0.00010639,2]
[360993962,1747187433590,-5710.2164744,0.00010724,2]
[360993963,1747187433600,-2000.0,0.000108,2]
[360993964,1747187433611,-500.0,0.00010959,2]
[360993965,1747187433621,-500.0,0.00010959,2]
[360993966,1747187433632,-500.0,0.00010959,2]
[360993967,1747187433642,-640.95526782,0.00010959,2]
[360993968,1747187433653,-652.68038405,0.00011147,2]
[360993969,1747187433663,-1000.0,0.000112,3]
[360993970,1747187433673,-2000.0,0.000118,4]
[360993971,1747187433683,-187.6215523,0.00011969,2]
[360993972,1747187433692,-1609.50979486,0.00012,2]
[360993973,1747187433702,-1499.99,0.00012,2]
[360993974,1747187433712,-2000.0,0.000128,5]
[360993975,1747187433723,-2000.0,0.000128,6]
[360993976,1747187433733,-2000.0,0.000128,7]
[360993977,1747187433744,-183.17753097,0.000129,2]
[360993978,1747187433755,-500.0,0.0001339,2]
[360993979,1747187433768,-178.2,0.0001339,2]
[360993980,1747187433779,-178.2,0.0001339,2]
[360993981,1747187433789,-178.2,0.0001339,2]
[360993982,1747187433799,-178.2,0.0001339,2]
[360993983,1747187433808,-178.2,0.0001339,2]
[360993984,1747187433819,-178.2,0.0001339,2]
[360993985,1747187433829,-178.2,0.0001339,2]
[360993986,1747187433841,-178.1,0.0001339,2]
[360993987,1747187433852,-500.37439521,0.00013398,2]
[360993988,1747187433862,-500.0,0.00013418,2]
[360993989,1747187433872,-500.53501093,0.00013418,2]
[360993990,1747187433884,-500.0,0.00013418,2]
[360993991,1747187433894,-500.0,0.00013418,2]
[360993992,1747187433905,-500.68106639,0.00013468,2]
[360993993,1747187433914,-500.0,0.00013468,2]
[360993994,1747187433926,-500.0,0.00013475,2]
[360993995,1747187433936,-501.99688546,0.00013475,2]
[360993996,1747187433947,-500.0,0.00013475,2]
[360993997,1747187433958,-504.97077707,0.00013586,2]
[360993998,1747187433969,-500.0,0.00013586,2]
[360993999,1747187433979,-500.0,0.00013586,2]
[360994000,1747187433990,-500.0,0.00013586,2]
[360994001,1747187434001,-500.0,0.00013586,2]
[360994002,1747187434013,-502.08231541,0.00013586,2]
[360994003,1747187434023,-500.0,0.00013586,2]
[360994004,1747187434033,-2000.0,0.000136,8]
[360994005,1747187434043,-500.0,0.00013665,2]
[360994006,1747187434053,-501.13465657,0.00013673,2]
[360994007,1747187434071,-401.27672285,0.00013698,2]
[360994008,1747187434082,-400.75864037,0.00013698,2]
[360994009,1747187434093,-400.0,0.00013698,2]
[360994010,1747187434103,-401.48439933,0.00013698,2]
[360994011,1747187434113,-330.21017935,0.00013698,2]
[360994012,1747187434123,-401.52794201,0.00013698,2]
[360994013,1747187434134,-400.53497183,0.00013698,2]
[360994014,1747187434144,-400.91497595,0.00013698,2]
[360994015,1747187434155,-401.97313959,0.00013698,2]
[360994016,1747187434165,-401.62813287,0.00013698,2]
[360994017,1747187434175,-402.17366004,0.00013698,2]
[360994018,1747187434185,-354.54522759,0.00013698,2]
[360994019,1747187434195,-401.52731997,0.00013698,2]
[360994020,1747187434205,-402.71754168,0.00013698,2]
[360994021,1747187434216,-403.98773312,0.00013698,2]
[360994022,1747187434234,-400.0,0.00013698,2]
[360994023,1747187434244,-413.88401734,0.00013698,2]
[360994024,1747187434255,-343.93554039,0.00013698,2]
[360994025,1747187434266,-402.17467488,0.00013698,2]
[360994026,1747187434276,-403.23185136,0.00013698,2]
[360994027,1747187434287,-312.03624395,0.00013698,2]
[360994028,1747187434297,-294.66914347,0.00013698,2]
[360994029,1747187434307,-401.8984415,0.00013698,2]
[360994030,1747187434317,-401.62330413,0.00013698,2]
[360994031,1747187434328,-401.86842116,0.00013698,2]
[360994032,1747187434338,-402.57326841,0.00013698,2]
[360994033,1747187434348,-401.53586074,0.00013698,2]
[360994034,1747187434358,-402.96343212,0.00013698,2]
[360994035,1747187434368,-401.75505417,0.00013698,2]
[360994036,1747187434378,-410.02449367,0.00013698,2]
[360994037,1747187434387,-402.1124176,0.00013698,2]
[360994038,1747187434397,-403.97545771,0.00013698,2]
[360994039,1747187434406,-403.17185057,0.00013698,2]
[360994040,1747187434416,-400.0,0.00013698,2]
[360994041,1747187434426,-404.47940177,0.00013698,2]
[360994042,1747187434436,-404.79970135,0.00013698,2]
[360994043,1747187434446,-404.00350743,0.00013698,2]
[360994044,1747187434457,-401.56064823,0.00013698,2]
[360994045,1747187434467,-403.83942707,0.00013698,2]
[360994046,1747187434477,-403.05905677,0.00013698,2]
[360994047,1747187434487,-401.48184625,0.00013698,2]
[360994048,1747187434497,-496.89785751,0.00013698,2]
[360994049,1747187434506,-400.0,0.00013698,2]
[360994050,1747187434516,-400.0,0.00013698,2]
[360994051,1747187434526,-400.0,0.00013698,2]
[360994052,1747187434536,-400.0,0.00013698,2]
[360994053,1747187434546,-419.82564443,0.00013698,2]
[360994054,1747187434556,-400.0,0.00013698,2]
[360994055,1747187434565,-400.9502854,0.00013698,2]
[360994056,1747187434575,-402.03996949,0.00013698,2]
[360994057,1747187434585,-400.38344243,0.00013698,2]
[360994058,1747187434595,-301.5065344,0.00013698,2]
[360994059,1747187434604,-402.16546915,0.00013698,2]
[360994060,1747187434614,-401.3386345,0.00013698,2]
[360994061,1747187434623,-403.29623448,0.00013698,2]
[360994062,1747187434632,-402.88242172,0.00013698,2]
[360994063,1747187434641,-403.70600135,0.00013698,2]
[360994064,1747187434651,-401.78202264,0.00013698,2]
[360994065,1747187434660,-401.42497451,0.00013698,2]
[360994066,1747187434669,-401.85422467,0.00013698,2]
[360994067,1747187434679,-400.88972187,0.00013698,2]
[360994068,1747187434688,-400.0,0.00013698,2]
[360994069,1747187434698,-403.39241232,0.00013698,2]
[360994070,1747187434707,-403.99358776,0.00013698,2]
[360994071,1747187434716,-400.0,0.00013698,2]
[360994072,1747187434726,-400.0,0.00013698,2]
[360994073,1747187434735,-403.69507883,0.00013698,2]
[360994074,1747187434744,-410.70612351,0.00013698,2]
[360994075,1747187434753,-401.15411807,0.00013698,2]
[360994076,1747187434764,-417.30471862,0.00013698,2]
[360994077,1747187434773,-402.75823176,0.00013698,2]
[360994078,1747187434783,-402.26978365,0.00013698,2]
[360994079,1747187434792,-402.20529716,0.00013698,2]
[360994080,1747187434802,-401.63721534,0.00013698,2]
[360994081,1747187434811,-403.32685255,0.00013698,2]
[360994082,1747187434820,-402.45220172,0.00013698,2]
[360994083,1747187434830,-400.0,0.00013698,2]
[360994084,1747187434839,-403.09333602,0.00013698,2]
[360994085,1747187434851,-400.85354034,0.00013698,2]
[360994086,1747187434861,-402.72169341,0.00013698,2]
[360994087,1747187434870,-508.01482448,0.00013698,2]
[360994088,1747187434879,-400.0,0.00013698,2]
[360994089,1747187434889,-504.96054307,0.00013698,2]
[360994090,1747187434899,-400.73606164,0.00013698,2]
[360994091,1747187434908,-403.44681913,0.00013698,2]
[360994092,1747187434917,-400.0,0.00013698,2]
[360994093,1747187434927,-401.87406693,0.00013698,2]
[360994094,1747187434938,-267.37016004,0.00013698,2]
[360994095,1747187434947,-402.99387464,0.00013698,2]
[360994096,1747187434957,-405.18956942,0.00013698,2]
[360994097,1747187434966,-403.04051582,0.00013698,2]
[360994098,1747187434976,-401.10687526,0.00013698,2]
[360994099,1747187434986,-401.45538592,0.00013698,2]
[360994100,1747187434995,-401.03680703,0.00013698,2]
[360994101,1747187435004,-400.66332929,0.00013698,2]
[360994102,1747187435016,-402.38365571,0.00013698,2]
[360994103,1747187435026,-401.41912014,0.00013698,2]
[360994104,1747187435035,-405.90842725,0.00013698,2]
[360994105,1747187435045,-401.82759779,0.00013698,2]
[360994106,1747187435054,-401.83297728,0.00013698,2]
[360994107,1747187435063,-512.24255416,0.00013698,2]
[360994108,1747187435073,-401.6131873,0.00013698,2]
[360994109,1747187435083,-400.00215032,0.00013698,2]
[360994110,1747187435092,-400.70421234,0.00013698,2]
[360994111,1747187435103,-542.17657755,0.00013698,2]
[360994112,1747187435112,-402.94071189,0.00013698,2]
[360994113,1747187435121,-405.05419468,0.00013698,2]
[360994114,1747187435131,-402.69315433,0.00013698,2]
[360994115,1747187435140,-401.19054388,0.00013698,2]
[360994116,1747187435150,-405.73385205,0.00013698,2]
[360994117,1747187435160,-403.73506519,0.00013698,2]
[360994118,1747187435170,-409.46090473,0.00013698,2]
[360994119,1747187435180,-401.15870657,0.00013698,2]
[360994120,1747187435190,-404.47473772,0.00013698,2]
[360994121,1747187435199,-400.0,0.00013698,2]
[360994122,1747187435209,-400.15188535,0.00013698,2]
[360994123,1747187435218,-404.30421138,0.00013698,2]
[360994124,1747187435227,-400.0,0.00013698,2]
[360994125,1747187435236,-400.0,0.00013698,2]
[360994126,1747187435246,-405.03235232,0.00013698,2]
[360994127,1747187435255,-438.9160323,0.00013698,2]
[360994128,1747187435268,-400.0,0.00013698,2]
[360994129,1747187435278,-405.65807552,0.00013698,2]
[360994130,1747187435287,-400.0,0.00013698,2]
[360994131,1747187435297,-400.0,0.00013698,2]
[360994132,1747187435306,-405.12145454,0.00013698,2]
[360994133,1747187435316,-400.0,0.00013698,2]
[360994134,1747187435326,-404.68862479,0.00013698,2]
[360994135,1747187435336,-400.0,0.00013698,2]
[360994136,1747187435345,-497.17794294,0.00013698,2]
[360994137,1747187435355,-405.82053881,0.00013698,2]
[360994138,1747187435364,-401.05562928,0.00013698,2]
[360994139,1747187435373,-401.92857458,0.00013698,2]
[360994140,1747187435383,-402.11263538,0.00013698,2]
[360994141,1747187435392,-400.86156178,0.00013698,2]
[360994142,1747187435401,-519.65814144,0.00013698,2]
[360994143,1747187435411,-413.461953,0.00013698,2]
[360994144,1747187435420,-279.05613005,0.00013698,2]
[360994145,1747187435429,-405.4202508,0.00013698,2]
[360994146,1747187435438,-404.11565018,0.00013698,2]
[360994147,1747187435448,-405.45944535,0.00013698,2]
[360994148,1747187435457,-416.41893148,0.00013698,2]
[360994149,1747187435467,-403.82784239,0.00013698,2]
[360994150,1747187435476,-528.24934183,0.00013698,2]
[360994151,1747187435486,-400.0,0.00013698,2]
[360994152,1747187435495,-405.90118417,0.00013698,2]
[360994153,1747187435504,-406.42821919,0.00013698,2]
[360994154,1747187435516,-400.0,0.00013698,2]
[360994155,1747187435525,-400.0,0.00013698,2]
[360994156,1747187435534,-400.0,0.00013698,2]
[360994157,1747187435544,-400.0,0.00013698,2]
[360994158,1747187435553,-544.17771763,0.00013698,2]
[360994159,1747187435563,-400.0,0.00013698,2]
[360994160,1747187435572,-412.7266285,0.00013698,2]
[360994161,1747187435582,-404.09336554,0.00013698,2]
[360994162,1747187435591,-401.08206332,0.00013698,2]
[360994163,1747187435602,-160.83573804,0.00013698,2]
[360994164,1747187435611,-404.93368111,0.00013698,2]
[360994165,1747187435621,-412.93922241,0.00013698,2]
[360994166,1747187435630,-400.0,0.00013698,2]
[360994167,1747187435639,-400.0,0.00013698,2]
[360994168,1747187435648,-485.47837891,0.00013698,2]
[360994169,1747187435658,-1004.31065689,0.00013698,2]
[360994170,1747187435667,-405.47199991,0.00013698,2]
[360994171,1747187435677,-400.0,0.00013698,2]
[360994172,1747187435687,-409.29434625,0.00013698,2]
[360994173,1747187435696,-400.0,0.00013698,2]
[360994174,1747187435706,-405.93322799,0.00013698,2]
[360994175,1747187435716,-400.0,0.00013698,2]
[360994176,1747187435725,-400.0,0.00013698,2]
[360994177,1747187435735,-401.05282746,0.00013698,2]
[360994178,1747187435745,-408.38249651,0.00013698,2]
[360994179,1747187435755,-476.9177619,0.00013698,2]
[360994180,1747187435766,-400.0,0.00013698,2]
[360994181,1747187435775,-156.65126331,0.00013698,2]
[360994182,1747187435784,-400.0,0.00013698,2]
[360994183,1747187435793,-416.56527722,0.00013698,2]
[360994184,1747187435803,-405.90397716,0.00013698,2]
[360994185,1747187435812,-400.0,0.00013698,2]
[360994186,1747187435821,-460.49814248,0.00013698,2]
[360994187,1747187435831,-408.80965409,0.00013698,2]
[360994188,1747187435841,-401.72416222,0.00013698,2]
[360994189,1747187435854,-472.40571519,0.00013698,2]
[360994190,1747187435864,-404.59486878,0.00013698,2]
[360994191,1747187435873,-503.38576491,0.00013698,2]
[360994192,1747187435883,-400.0,0.00013698,2]
[360994193,1747187435892,-404.58712487,0.00013698,2]
[360994194,1747187435901,-401.48501098,0.00013698,2]
[360994195,1747187435911,-400.0,0.00013698,2]
[360994196,1747187435920,-407.27363615,0.00013698,2]
[360994197,1747187435931,-400.0,0.00013698,2]
[360994198,1747187435941,-408.20259017,0.00013698,2]
[360994199,1747187435951,-464.8590365,0.00013698,2]
[360994200,1747187435960,-401.49731764,0.00013698,2]
[360994201,1747187435969,-511.74940643,0.00013698,2]
[360994202,1747187435979,-400.0,0.00013698,2]
[360994203,1747187435988,-408.94773764,0.00013698,2]
[360994204,1747187435998,-405.52763998,0.00013698,2]
[360994205,1747187436008,-400.0,0.00013698,2]
[360994206,1747187436019,-489.62663488,0.00013698,2]
[360994207,1747187436031,-403.70828896,0.00013698,2]
[360994208,1747187436040,-549.83020819,0.00013698,2]
[360994209,1747187436050,-404.10791273,0.00013698,2]
[360994210,1747187436059,-404.30152506,0.00013698,2]
[360994211,1747187436068,-400.0,0.00013698,2]
[360994212,1747187436078,-408.28604564,0.00013698,2]
[360994213,1747187436087,-400.0,0.00013698,2]
[360994214,1747187436097,-400.0,0.00013698,2]
[360994215,1747187436106,-408.54820395,0.00013698,2]
[360994216,1747187436115,-402.3854583,0.00013698,2]
[360994217,1747187436124,-655.36,0.00013698,2]
[360994218,1747187436134,-400.0,0.00013698,2]
[360994219,1747187436143,-400.0,0.00013698,2]
[360994220,1747187436153,-402.16394234,0.00013698,2]
[360994221,1747187436163,-401.6997799,0.00013698,2]
[360994222,1747187436171,-400.0,0.00013698,2]
[360994223,1747187436181,-410.33178402,0.00013698,2]
[360994224,1747187436191,-400.0,0.00013698,2]
[360994225,1747187436203,-400.0,0.00013698,2]
[360994226,1747187436213,-400.0,0.00013698,2]
[360994227,1747187436222,-405.77634275,0.00013698,2]
[360994228,1747187436232,-404.81235128,0.00013698,2]
[360994229,1747187436242,-408.39073787,0.00013698,2]
[360994230,1747187436252,-416.89987272,0.00013698,2]
[360994231,1747187436262,-402.48431942,0.00013698,2]
[360994232,1747187436272,-400.0,0.00013698,2]
[360994233,1747187436281,-401.53807835,0.00013698,2]
[360994234,1747187436291,-400.0,0.00013698,2]
[360994235,1747187436300,-401.73831172,0.00013698,2]
[360994236,1747187436310,-400.0,0.00013698,2]
[360994237,1747187436320,-400.0,0.00013698,2]
[360994238,1747187436329,-3516.83,0.00013698,2]
[360994239,1747187436338,-401.60151702,0.00013698,2]
[360994240,1747187436347,-400.0,0.00013698,2]
[360994241,1747187436356,-400.0,0.00013698,2]
[360994242,1747187436366,-405.43996007,0.00013698,2]
[360994243,1747187436375,-400.0,0.00013698,2]
[360994244,1747187436385,-404.85215343,0.00013698,2]
[360994245,1747187436394,-404.53372802,0.00013698,2]
[360994246,1747187436404,-648.73,0.00013698,2]
[360994247,1747187436413,-406.32852452,0.00013698,2]
[360994248,1747187436422,-400.0,0.00013698,2]
[360994249,1747187436431,-405.08067126,0.00013698,2]
[360994250,1747187436441,-1013.95443075,0.00013698,2]
[360994251,1747187436451,-414.67355812,0.00013698,2]
[360994252,1747187436462,-400.0,0.00013698,2]
[360994253,1747187436472,-315.321617,0.00013698,2]
[360994254,1747187436482,-402.07660022,0.00013698,2]
[360994255,1747187436491,-400.0,0.00013698,2]
[360994256,1747187436501,-400.0,0.00013698,2]
[360994257,1747187436513,-401.55974039,0.00013698,2]
[360994258,1747187436523,-405.08659617,0.00013698,2]
[360994259,1747187436533,-400.0,0.00013698,2]
[360994260,1747187436543,-407.69630335,0.00013698,2]
[360994261,1747187436552,-400.0,0.00013698,2]
[360994262,1747187436561,-400.0,0.00013698,2]
[360994263,1747187436571,-209.50782108,0.00013698,2]
[360994264,1747187436580,-1326.9,0.00013698,2]
[360994265,1747187436590,-404.45243843,0.00013698,2]
[360994266,1747187436599,-411.00729169,0.00013698,2]
[360994267,1747187436609,-461.61027282,0.00013698,2]
[360994268,1747187436618,-407.44319367,0.00013698,2]
[360994269,1747187436628,-400.0,0.00013698,2]
[360994270,1747187436637,-404.02369255,0.00013698,2]
[360994271,1747187436646,-400.0,0.00013698,2]
[360994272,1747187436655,-400.0,0.00013698,2]
[360994273,1747187436665,-282.36886394,0.00013698,2]
[360994274,1747187436674,-403.91821759,0.00013698,2]
[360994275,1747187436683,-405.49085518,0.00013698,2]
[360994276,1747187436692,-726.79,0.00013698,2]
[360994277,1747187436702,-400.61803526,0.00013698,2]
[360994278,1747187436711,-400.0,0.00013698,2]
[360994279,1747187436720,-421.6474544,0.00013698,2]
[360994280,1747187436729,-406.29726026,0.00013698,2]
[360994281,1747187436738,-404.23325579,0.00013698,2]
[360994282,1747187436747,-400.0,0.00013698,2]
[360994283,1747187436757,-400.0,0.00013698,2]
[360994284,1747187436772,-402.07402513,0.00013698,2]
[360994285,1747187436781,-400.0,0.00013698,2]
[360994286,1747187436791,-400.0,0.00013698,2]
[360994287,1747187436800,-400.96974922,0.00013698,2]
[360994288,1747187436809,-448.96034852,0.00013698,2]
[360994289,1747187436818,-400.0,0.00013698,2]
[360994290,1747187436828,-400.0,0.00013698,2]
[360994291,1747187436838,-429.330496,0.00013698,2]
[360994292,1747187436850,-400.0,0.00013698,2]
[360994293,1747187436859,-400.92729667,0.00013698,2]
[360994294,1747187436869,-400.0,0.00013698,2]
[360994295,1747187436879,-404.05421753,0.00013698,2]
[360994296,1747187436890,-1363.97,0.00013698,2]
[360994297,1747187436899,-400.0,0.00013698,2]
[360994298,1747187436909,-400.78371267,0.00013698,2]
[360994299,1747187436918,-400.0,0.00013698,2]
[360994300,1747187436932,-400.0,0.00013698,2]
[360994301,1747187436941,-401.21059906,0.00013698,2]
[360994302,1747187436951,-400.65658322,0.00013698,2]
[360994303,1747187436960,-400.8157774,0.00013698,2]
[360994304,1747187436969,-400.0,0.00013698,2]
[360994305,1747187436980,-408.39320513,0.00013698,2]
[360994306,1747187436990,-400.0,0.00013698,2]